Cogmind - Beta 11.1 @@@ ROGUE MODE // 2022.11.10 @ 01:10:16 Player: Infomantis Result: Destroyed self with Vortex Catalyst Activator Performance ------------- Evolutions (7) 3500 Regions Visited (22) 4400 Robots Destroyed (247) 1235 Value Destroyed (10669) 10669 Prototype IDs (51) 1020 Alien Tech Used (8) 1600 Bonus (11169) 11169 TOTAL SCORE: 33593 Bonus ------- Unstable Evolution 3500 High Alert Combat Kills 399 Follower Combat Kills 783 Met Zhirov 300 Met Warlord at Base 500 MAIN.C Attacked Warlord 500 Warlord Defense Kills 1770 Used Core Reset Matrix 3000 Scanned by Researcher 500 Pursued by Intercept 500 Friendly Fire -583 Cogmind --------- Core Integrity 0/1300 Matter 98/425 Energy 1/100 System Corruption 14% Temperature Cool (0) Movement Core (150) Ox2 Location -3/Section 7 Parts ------- > --- POWER (3) -------- (None) > --- PROPULSION (8) --- (None) > --- UTILITY (6) ------ Medium Storage Unit > --- WEAPON (4) ------- Vortex Catalyst Activator > --- INVENTORY (10) --- Improved Field Recycling Unit (0) Subatomic Replicator Spacefold Activator Peak State ------------ > --- POWER ------------ Light Particle Reactor Micro Antimatter Reactor Micro Antimatter Reactor > --- PROPULSION ------- Biometal Medium Treads Biometal Medium Treads Biometal Medium Treads Myomer Leg Myomer Leg Advanced Myomer Leg Advanced Myomer Leg Advanced Myomer Leg > --- UTILITY ---------- Medium Storage Unit Advanced Sensor Array Advanced Signal Interpreter Experimental Core Analyzer Advanced Transmission Jammer Advanced Force Field > --- WEAPON ----------- Core Cannon Heavy Machine Gun Heavy Machine Gun > --- INVENTORY -------- Light Antimatter Reactor Myomer Leg Advanced Cooling System Advanced Force Field Advanced System Shield Improved Field Recycling Unit Transdimensional Reconstructor Heavy Gauss Cannon Vortex Catalyst Activator [Rating: 167] Favorites ----------- Power Improved Deuterium Engine Engine Improved Deuterium Engine Power Core Reinforced Fission Core Reactor Light Antimatter Reactor Propulsion Carbon-fiber Leg Treads Armored Medium Treads Leg Carbon-fiber Leg Wheel Compact Wheel Hover Unit Cooled Gravmag System Flight Unit Xenon Bombardment Thruster Utility Core Analyzer Device Experimental Sensor Array Storage Large Storage Unit Processor Core Analyzer Hackware Advanced Hacking Suite Protection Hardened Light Armor Plating Artifact Microwarp Drive Weapon Coil Gun Energy Gun Quantum Rifle Energy Cannon Long-range Phase Cannon Ballistic Gun Coil Gun Ballistic Cannon Linear Accelerator Launcher Rocket Launcher Slashing Weapon Katana Piercing Weapon Plasma Lance Build | -11 -10 -10 -10 -9 -8 -7 -6 -5 -5 -5 -5 -5 -5 -4 -4 -4 -4 -4 -3 -3 -3 -3 ------- Run | Scr Mat Min Exi Min Mat Fac Fac Fac Was Fac Upp Upp Zhi Pro Fac Upp Upp War Pro Res Qua Sec Slots Evolved 14 | . . . . . 4 2 2 2 . . . . . . 2 . . . . 2 . . Power 2 | . . . . . 1 . . . . . . . . . 1 . . . . . . . Propulsion 6 | . . . . . 2 . 1 2 . . . . . . . . . . . 1 . . Utility 4 | . . . . . . 2 1 . . . . . . . . . . . . 1 . . Weapon 2 | . . . . . 1 . . . . . . . . . 1 . . . . . . . Parts Attached 356 | 7 4 5 . 6 25 21 43 4 6 20 2 9 11 9 36 5 . 28 4 40 36 35 Power 58 | 1 . 1 . 2 4 5 5 . . 4 . . 3 2 7 . . 2 2 9 7 4 Engine 22 | 1 . 1 . 2 4 4 2 . . 3 . . 2 . . . . . . 3 . . Core 10 | . . . . . . 1 1 . . 1 . . . 2 5 . . . . . . . Reactor 26 | . . . . . . . 2 . . . . . 1 . 2 . . 2 2 6 7 4 Propulsion 94 | 2 . 1 . 2 11 4 14 2 2 7 1 . 4 1 9 2 . 6 1 12 9 4 Treads 13 | . . . . . . . . 1 1 3 1 . . . 1 . . . . 1 3 2 Leg 60 | 2 . 1 . 2 11 4 14 1 1 4 . . . 1 2 . . 1 . 10 6 . Wheel 2 | . . . . . . . . . . . . . . . . . . . . . . 2 Hover 17 | . . . . . . . . . . . . . 4 . 6 2 . 5 . . . . Flight 2 | . . . . . . . . . . . . . . . . . . . 1 1 . . Utility 105 | 2 . 2 . 1 5 7 17 . 3 6 1 7 4 3 5 2 . 9 . 6 10 15 Device 68 | 1 . 2 . 1 2 4 9 . 3 1 1 6 2 3 5 2 . 6 . 3 10 7 Storage 6 | 1 . . . . 1 . 2 . . . . . 1 . . . . . . 1 . . Processor 8 | . . . . . . 1 1 . . 1 . 1 . . . . . 2 . 1 . 1 Hackware 2 | . . . . . . . 1 . . . . . . . . . . . . 1 . . Protection 17 | . . . . . 2 2 4 . . 4 . . 1 . . . . 1 . . . 3 Artifact 4 | . . . . . . . . . . . . . . . . . . . . . . 4 Weapon 99 | 2 4 1 . 1 5 5 7 2 1 3 . 2 . 3 15 1 . 11 1 13 10 12 Energy Gun 10 | 2 . . . . . . 2 . . . . 1 . . . 1 . . . . 2 2 Energy Cannon 4 | . . . . . . . . . . . . . . . . . . 1 . . 1 2 Ballistic Gun 68 | . 4 1 . 1 5 5 3 2 1 2 . . . 2 15 . . 5 1 12 4 5 Ballistic Cannon 8 | . . . . . . . 1 . . 1 . . . . . . . 1 . 1 3 1 Launcher 5 | . . . . . . . 1 . . . . 1 . . . . . 1 . . . 2 Special Weapon . | . . . . . . . . . . . . . . . . . . . . . . . Impact Weapon . | . . . . . . . . . . . . . . . . . . . . . . . Slashing Weapon 3 | . . . . . . . . . . . . . . 1 . . . 2 . . . . Piercing Weapon 1 | . . . . . . . . . . . . . . . . . . 1 . . . . Special Melee Weapon . | . . . . . . . . . . . . . . . . . . . . . . . Unidentified Prototypes 27 | . . 1 . . 1 . . 1 1 . . . 6 . 1 . . 7 . 1 1 7 Parts Lost 96 | . . 3 . . 3 4 11 . . 10 . 13 . 1 . 1 . 4 4 14 6 22 Power 20 | . . 1 . . 2 1 2 . . 3 . . . 1 . . . . 1 4 1 4 Propulsion 22 | . . 1 . . . . 2 . . 2 . 5 . . . . . 1 2 . 1 8 Utility 21 | . . . . . . 1 2 . . 2 . 3 . . . . . 2 . 3 2 6 Weapon 33 | . . 1 . . 1 2 5 . . 3 . 5 . . . 1 . 1 1 7 2 4 Highest Loss Streak 13 | . . 3 . . 2 1 6 . . 5 . 12 . 1 . 1 . 3 2 3 2 13 To Critical Strikes 4 | . . . . . . . 1 . . . . . . . . . . . . 2 . 1 Average Slot Usage (%) 92 | . 99 98 100 100 90 98 94 96 99 92 94 90 39 74 82 96 100 98 93 89 98 79 Engine 6 | . 14 13 14 14 12 14 5 5 5 4 5 4 1 2 . . . . . 3 2 . Core 2 | . . . . . . . . 5 5 5 5 4 . 2 9 10 10 10 3 . . . Reactor 3 | . . . . . . . 4 . . . . . 1 5 5 5 5 5 8 7 11 12 Treads 4 | . . . . . . . . 2 5 12 17 16 3 . . . . . . 2 13 9 Leg 20 | . 28 27 28 28 33 30 31 35 33 21 17 16 . . . . . . . 19 23 14 Hover 5 | . . . . . . . . . . . . . 5 23 22 33 36 35 31 7 . . Device 9 | . 14 13 14 14 8 6 10 11 11 7 5 5 3 5 9 10 10 9 5 8 13 8 Storage 6 | . 14 14 14 14 9 7 6 5 5 5 5 5 5 5 5 5 5 5 5 4 4 4 Processor 7 | . . . . . . 7 7 11 11 11 11 11 17 17 10 10 10 10 10 9 9 4 Protection 2 | . . . . . . 6 4 . . 2 5 4 . . . . . . 5 1 . 2 Ballistic Gun 16 | . 22 27 28 28 26 22 13 15 17 15 11 8 . 5 17 18 15 14 18 15 16 8 Naked Turns . | . . . . . . . . . . . . . . . . . . . . . . . Heaviest Build 119 | 14 17 17 15 17 32 44 53 53 54 79 79 78 42 59 77 79 77 83 73 87 103 119 Greatest Support 146 | 20 20 20 20 20 58 70 94 96 76 97 97 97 44 59 64 77 77 79 79 140 146 140 Greatest Overweight (x) 7 | . . 1 . . 1 . . . . 1 . . . 1 2 1 . 1 1 1 1 7 Average Overweight (x) . | . . . . . . . . . . . . . . . 1 . . . . . . . Largest Inventory Capacity 15 | 8 8 8 8 8 8 8 15 15 15 15 15 15 15 15 15 15 15 15 15 15 10 10 Average Capacity 11 | 7 8 8 8 8 8 8 8 15 15 15 15 15 15 15 15 15 15 15 15 10 10 10 Most Carried 15 | 8 8 8 8 8 8 8 11 14 15 15 15 15 15 15 15 15 15 15 15 15 10 10 Average Carried 11 | 5 7 7 8 7 7 7 7 11 14 14 14 14 13 14 14 15 15 14 14 9 9 9 Final Capacity 15 | 8 8 8 8 8 8 8 15 15 15 15 15 15 15 15 15 15 15 15 15 10 10 10 Final Carried 15 | 8 8 8 8 8 8 8 11 14 15 15 15 13 15 15 15 15 15 15 15 10 10 3 Class Distribution -------------------- 26% | Scavenger-Skirmisher 18% | Mutant 17% | Scavenger-Gunner 13% | Scavenger-Mutant 9% | Gunner 7% | Scavenger-Sprinter Dominant Class ---------------- Mutant | -10/Materials Mutant | -10/Mines Mutant | -10/Exiles Scavenger-Mutant | -9/Mines Scavenger-Gunner | -8/Materials Gunner | -7/Factory Gunner | -6/Factory Scavenger-Skirmisher | -5/Factory Scavenger-Skirmisher | -5/Waste Scavenger-Gunner | -5/Factory Scavenger-Skirmisher | -5/Upper Caves Scavenger-Mutant | -5/Upper Caves Mutant | -5/Zhirov Mutant | -4/Proximity Caves Generator-Skirmisher | -4/Factory Scavenger-Skirmisher | -4/Upper Caves Scavenger-Sprinter | -4/Upper Caves Scavenger-Sprinter | -4/Warlord Scavenger-Skirmisher | -3/Proximity Caves Scavenger-Gunner | -3/Research Scavenger-Skirmisher | -3/Quarantine Scavenger-Mutant | -3/Section 7 Resources | -11 -10 -10 -10 -9 -8 -7 -6 -5 -5 -5 -5 -5 -5 -4 -4 -4 -4 -4 -3 -3 -3 -3 ----------- Run | Scr Mat Min Exi Min Mat Fac Fac Fac Was Fac Upp Upp Zhi Pro Fac Upp Upp War Pro Res Qua Sec Matter Collected 10391 | 270 149 211 . 210 1171 987 731 135 110 662 177 413 . 314 432 229 8 697 138 1673 789 885 Remotely . | . . . . . . . . . . . . . . . . . . . . . . . Salvage Created 12002 | 57 149 177 . 183 1274 1362 1217 135 . 735 94 371 . 146 161 165 . 778 72 2371 1003 1552 Parts 591 | 11 8 11 . 18 50 76 40 8 . 39 5 17 . 2 12 11 . 36 5 111 54 77 Haulers Intercepted 4 | . . . . . 2 . 2 . . . . . . . . . . . . . . . Recyclers Shooed 17 | 1 1 . . . 3 2 1 . . 1 . . . . . . . . . 4 2 2 Parts Field Recycled 11 | . . . . . . . . . . . . . . . . . . . . . 8 3 Retrieved Matter 82 | . . . . . . . . . . . . . . . . . . . . . 63 19 Parts Self-Destructed 70 | . . . . . . . . . . . 5 16 . 36 . 10 . . 3 . . . Prevented 7 | . . . . . . . . . . . . 2 . 5 . . . . . . . . Kills | -11 -10 -10 -10 -9 -8 -7 -6 -5 -5 -5 -5 -5 -5 -4 -4 -4 -4 -4 -3 -3 -3 -3 ------- Run | Scr Mat Min Exi Min Mat Fac Fac Fac Was Fac Upp Upp Zhi Pro Fac Upp Upp War Pro Res Qua Sec Combat Hostiles Destroyed 181 | . 3 6 . 7 17 23 16 . . 11 4 10 . . 1 3 . 13 2 26 14 25 Guns 163 | . 3 6 . 7 17 23 11 . . 10 4 8 . . 1 3 . 13 2 26 14 15 Cannons 7 | . . . . . . . 1 . . 1 . 2 . . . . . . . . . 3 AOE 11 | . . . . . . . 4 . . . . . . . . . . . . . . 7 Classes Destroyed 20 | 1 2 1 . . 7 1 1 . . 2 . . . . . . . 2 . 1 1 1 Worker 12 | . . . . . 5 . . . . . . . . . 1 . . . . 4 1 1 Builder 7 | . . . . . . . . . . 2 . . . . . . . . . 3 . 2 Tunneler 6 | 3 . 1 . . 2 . . . . . . . . . . . . . . . . . Hauler 4 | . . . . . 2 . 2 . . . . . . . . . . . . . . . Recycler 21 | . 1 . . . 3 4 2 1 . . . . . 1 . . . . . 7 . 2 Mechanic 1 | . . . . . . . . . . . . . . . . . . . . 1 . . Operator 4 | . . . . . 1 2 . . . . . . . . 1 . . . . . . . Watcher 10 | . . . . . 1 2 2 1 . 1 . . . . 1 . . . . 2 . . Swarmer 50 | . 3 3 . 4 . 3 4 . . . 4 5 . . . . . 1 2 13 . 8 Grunt 67 | . . 2 . 3 12 11 9 . . 4 . 5 . . . . . 4 . 3 4 10 Brawler 1 | . . . . . . . 1 . . . . . . . . . . . . . . . Duelist 3 | . . . . . 1 1 1 . . . . . . . . . . . . . . . Protector 2 | . . . . . . . . . . . . . . . . . . 2 . . . . Researcher 1 | . . . . . . . . . . . . . . . . . . . . . . 1 Sentry 12 | . . . . . 3 2 1 . . 2 . . . . 1 . . . . 2 . 1 Specialist 3 | . . . . . . . . . . . . . . . . . . . . . 3 . Hunter 7 | . . . . . 1 1 . . . 1 . . . . . . . . . 4 . . Programmer 32 | . . . . . . 5 . . . 3 . . . . . 3 . 5 . 4 7 5 Heavy 1 | . . . . . . . . . . 1 . . . . . . . . . . . . S7 Guard 1 | . . . . . . . . . . . . . . . . . . . . . . 1 Executioner 1 | . . . . . . . . . . . . . . . . . . 1 . . . . Best Kill Streak 11 | 3 2 3 . 4 6 7 7 1 . 3 4 4 . 1 1 2 . 5 2 7 3 11 Combat Bots Only 10 | . 2 3 . 4 6 3 6 . . 3 4 4 . . 1 2 . 5 2 5 3 10 Max Kills in Single Turn 3 | 1 1 1 . 2 2 2 2 1 . 2 1 1 . 1 1 2 . 2 1 3 2 3 Gunslinging 1 | . . . . . 1 . . . . 1 . . . . . 1 . 1 . 1 . . Exploded 3 | . . . . . . . 2 . . . . . . . . . . . . . . 3 Melee . | . . . . . . . . . . . . . . . . . . . . . . . Uniques/NPCs Destroyed 1 | . . 1 . . . . . . . . . . . . . . . . . . . . YI-UF0 (-10/Mines) Combat | -11 -10 -10 -10 -9 -8 -7 -6 -5 -5 -5 -5 -5 -5 -4 -4 -4 -4 -4 -3 -3 -3 -3 -------- Run | Scr Mat Min Exi Min Mat Fac Fac Fac Was Fac Upp Upp Zhi Pro Fac Upp Upp War Pro Res Qua Sec Damage Taken 20174 | . 34 573 . 161 1059 1453 1761 . . 1800 326 1684 . 150 17 299 . 542 659 2918 1626 5112 Core 2301 | . . 115 . 55 96 155 42 . . 134 . 99 . 25 . 76 . 39 84 161 117 1103 Absorbed by Shields 4515 | . . . . . . . . . . . . 17 . . 6 111 . 167 9 1663 982 1560 Reduced by Siege Mode 87 | . . . . . . . . . . . . 14 . . . . . . . . . 73 Regen/Repaired (Parts) 187 | . . . . . . . . . . . . . . . . . . . . . . 187 Core Remaining (%) 77 | 100 . . . 32 82 77 95 . . . . . . 74 . . . . 82 . . . Volleys Fired 618 | 6 7 24 . 12 75 71 55 8 . 34 5 32 . . 11 7 . 36 9 111 34 81 Largest 4 | 1 2 2 . 2 3 3 3 3 . 3 2 3 . . 4 4 . 3 3 4 4 4 Hottest 260 | 40 46 46 . 46 71 86 171 91 . 129 63 178 . . 126 126 . 99 99 126 215 260 Shots Fired 1672 | 6 14 47 . 24 221 188 124 24 . 98 10 68 . . 41 25 . 108 27 329 128 190 Gun 1584 | 6 14 47 . 24 221 188 106 24 . 88 10 40 . . 41 25 . 108 27 323 126 166 Cannon 77 | . . . . . . . 14 . . 10 . 24 . . . . . . . 6 2 21 Launcher 11 | . . . . . . . 4 . . . . 4 . . . . . . . . . 3 Special . | . . . . . . . . . . . . . . . . . . . . . . . Kinetic 1561 | . 14 47 . 24 221 188 78 24 . 98 10 59 . . 41 25 . 108 27 329 127 141 Thermal 97 | 6 . . . . . . 42 . . . . 5 . . . . . . . . 1 43 Explosive 8 | . . . . . . . 4 . . . . 4 . . . . . . . . . . Electromagnetic 3 | . . . . . . . . . . . . . . . . . . . . . . 3 Entropic 3 | . . . . . . . . . . . . . . . . . . . . . . 3 Robot Hit Streak 20 | 3 3 10 . 10 14 10 10 2 . 10 6 9 . . 2 4 . 11 2 12 9 20 Robot Miss Streak 10 | 2 3 3 . 2 4 6 6 10 . 5 1 3 . . 5 4 . 7 3 8 4 5 Penetration Max 1 | . . . . . . 1 . . . 1 . . . . 1 . . 1 1 1 1 1 Secondary Targets 33 | . . . . 1 4 3 3 . . 1 1 . . . . 1 . 4 1 6 3 5 Max Gunslinging Chain 1 | . . . . 1 1 1 1 . . 1 1 . . . . 1 . 1 1 1 1 1 Shots Hit Robots 988 | 3 7 35 . 19 143 119 76 15 . 58 7 42 . 1 16 13 . 61 6 182 78 107 Core Hits 554 | 3 5 12 . 11 60 75 52 7 . 26 6 19 . 1 10 6 . 43 5 103 40 70 Critical Kills 5 | . . . . . . . 1 . . 1 . . . . 1 . . . . 2 . . Critical Parts Destroyed 11 | . . . . . . 1 . . . . . . . . 1 1 . 1 . 4 1 2 Critical Strikes 22 | . . . . . . 1 3 . . 2 . 2 . . 2 1 . 1 . 6 1 3 Burn 2 | . . . . . . . 1 . . . . 1 . . . . . . . . . . Destroy 17 | . . . . . . 1 1 . . 1 . . . . 2 1 . 1 . 6 1 3 Blast 3 | . . . . . . . 1 . . 1 . 1 . . . . . . . . . . Melee Attacks 3 | . . . . . . . . . . . . . . 1 . . . . 2 . . . Impact . | . . . . . . . . . . . . . . . . . . . . . . . Slashing 1 | . . . . . . . . . . . . . . 1 . . . . . . . . Piercing 2 | . . . . . . . . . . . . . . . . . . . 2 . . . Sneak Attacks 1 | . . . . . . . . . . . . . . 1 . . . . . . . . Combat Hostiles . | . . . . . . . . . . . . . . . . . . . . . . . Follow-up Attacks . | . . . . . . . . . . . . . . . . . . . . . . . Damage Inflicted 26493 | 33 109 529 . 296 2436 2362 2071 210 . 1544 146 1369 . 67 397 324 . 2349 166 4528 2127 5430 Guns 22181 | 33 109 527 . 296 2436 2283 1402 200 . 1325 146 539 . . 397 324 . 2349 166 4502 2127 3020 Cannons 1296 | . . . . . . . 218 . . 214 . 593 . . . . . . . . . 271 Explosions 2883 | . . . . . . 79 436 . . . . 237 . . . . . . . . . 2131 Melee 67 | . . . . . . . . . . . . . . 67 . . . . . . . . Ramming 66 | . . 2 . . . . 15 10 . 5 . . . . . . . . . 26 . 8 Kinetic 21904 | . 109 527 . 296 2436 2283 971 200 . 1539 146 1050 . . 397 324 . 2349 166 4502 2127 2482 Thermal 1520 | 33 . . . . . . 649 . . . . 82 . . . . . . . . . 756 Explosive 1079 | . . . . . . 79 436 . . . . 237 . . . . . . . . . 327 Electromagnetic 53 | . . . . . . . . . . . . . . . . . . . . . . 53 Impact . | . . . . . . . . . . . . . . . . . . . . . . . Slashing 67 | . . . . . . . . . . . . . . 67 . . . . . . . . Piercing . | . . . . . . . . . . . . . . . . . . . . . . . Entropic 1804 | . . . . . . . . . . . . . . . . . . . . . . 1804 Highest Corruption 23 | . . . . . . 5 10 . . 2 2 2 2 2 . 5 5 5 . 3 23 23 Average Corruption 3 | . . . . . . 2 6 . . 1 2 2 2 2 . 4 5 5 . 2 9 7 Corruption Purged . | . . . . . . . . . . . . . . . . . . . . . . . Corruption Blocked 15 | . . . . . . . . . . . . . . . . . . . . . . 15 Effects 135 | . . . . . . 22 12 . . 9 12 13 2 6 . 2 5 1 . 8 31 12 Message Errors 27 | . . . . . . 5 4 . . 2 . 1 . 1 . . 2 1 . 1 5 5 Matter Fused 35 | . . . . . . 6 4 . . 3 3 5 . 3 . . . . . 2 8 1 Heat Flow Errors 17 | . . . . . . 1 1 . . . 4 1 2 . . . . . . 1 5 2 Energy Discharges 14 | . . . . . . 3 2 . . 1 . 3 . 1 . . 1 . . 2 1 . Parts Rejected 2 | . . . . . . . . . . . 1 . . . . . . . . . 1 . Data Loss (minor) 21 | . . . . . . 3 . . . 3 2 2 . . . 1 1 . . 2 5 2 Data Loss (major) 9 | . . . . . . 2 . . . . 2 . . 1 . 1 1 . . . 2 . Misfires 2 | . . . . . . 1 . . . . . . . . . . . . . . 1 . Alerts 2 | . . . . . . . . . . . . . . . . . . . . . 1 1 Misdirections 1 | . . . . . . . . . . . . . . . . . . . . . . 1 Weapon Failures 5 | . . . . . . 1 1 . . . . 1 . . . . . . . . 2 . Overload Shots . | . . . . . . . . . . . . . . . . . . . . . . . Overflow Damage 193 | . . . . . . 19 4 . . 8 . 22 . . . . . . . . . 140 Projectiles 30 | . . . . . . . . . . 8 . 22 . . . . . . . . . . Explosions 163 | . . . . . . 19 4 . . . . . . . . . . . . . . 140 Melee . | . . . . . . . . . . . . . . . . . . . . . . . Knockbacks 9 | . . . . . . . 1 . . 1 . 4 . . . . . . . . . 3 Impact . | . . . . . . . . . . . . . . . . . . . . . . . Kinetic 7 | . . . . . . . 1 . . 1 . 3 . . . . . . . . . 2 Secondary 2 | . . . . . . . . . . . . 1 . . . . . . . . . 1 Self-Inflicted Damage 349 | . . . . . . . 68 . . . . 75 . . . . . . . . . 206 Shots 7 | . . . . . . . 2 . . . . 3 . . . . . . . . . 2 Rammed 5 | . . . . . . . . . . . . . . . . . . . . . . 5 Targets Rammed 13 | . . 1 . . 1 . 1 1 . 1 . . . . . . . . . 3 . 5 Kicked 8 | . . 1 . . 1 . 1 1 . 1 . . . . . . . . . 3 . . Crushed . | . . . . . . . . . . . . . . . . . . . . . . . Highest Temperature 330 | . 6 33 . 28 251 301 330 . . 7 254 311 262 . 108 214 3 60 93 64 179 330 Average Temperature 77 | . 4 10 . 11 126 64 118 . . 2 96 90 132 . 44 90 3 15 35 35 80 111 Received Heat Transfer 3039 | . . 72 . 45 576 462 747 . . 144 . 354 . 45 . . . 92 18 95 80 309 Effects 8 | . . . . . . . . . . . . 2 1 . . 2 . . . . . 3 Shutdowns 1 | . . . . . . . . . . . . 1 . . . . . . . . . . Energy Bleed 2 | . . . . . . . . . . . . 1 1 . . . . . . . . . Interference 5 | . . . . . . . . . . . . . . . . 2 . . . . . 3 Siege Activations 3 | . . . . . . . . . . . . 1 . . . . . . . . . 2 Total Turns 83 | . . . . . . . . . . . . 10 . . . . . . . . . 73 Longest Duration 43 | . . . . . . . . . . . . 10 . . . . . . . . . 43 Robots Corrupted . | . . . . . . . . . . . . . . . . . . . . . . . Combat Hostiles . | . . . . . . . . . . . . . . . . . . . . . . . Parts Fried . | . . . . . . . . . . . . . . . . . . . . . . . Impact Corruptions . | . . . . . . . . . . . . . . . . . . . . . . . Robots Melted . | . . . . . . . . . . . . . . . . . . . . . . . Combat Hostiles . | . . . . . . . . . . . . . . . . . . . . . . . Parts Melted 4 | . . . . . . . . . . . . . . . 1 . . 1 . . . 2 Heat Transferred 2554 | 75 . . . . . . 1332 . . . . 222 . . . . . . . . . 925 Parts Sabotaged 2 | . . . . . . . . . . . . . . . . . . . . 2 . . Parts Stolen . | . . . . . . . . . . . . . . . . . . . . . . . Parts Stripped . | . . . . . . . . . . . . . . . . . . . . . . . Power Chain Reactions . | . . . . . . . . . . . . . . . . . . . . . . . Missiles Intercepted . | . . . . . . . . . . . . . . . . . . . . . . . Alert | -11 -10 -10 -10 -9 -8 -7 -6 -5 -5 -5 -5 -5 -5 -4 -4 -4 -4 -4 -3 -3 -3 -3 ------- Run | Scr Mat Min Exi Min Mat Fac Fac Fac Was Fac Upp Upp Zhi Pro Fac Upp Upp War Pro Res Qua Sec Peak Influence 912 | 15 120 151 . 175 380 418 343 159 55 453 . . . . 104 . . . . 440 264 912 Initial 247 | . 9 46 . . 68 130 204 130 55 . . . . . . . . . . 54 247 129 Average 192 | 5 56 42 . 147 216 202 213 135 45 244 . . . . 44 . . . . 219 157 505 Maximum Alert Level 3 | . . . . . 1 2 1 . . 2 . . . . . . . . . 2 1 3 Low Security (%) 57 | 100 100 100 . 100 31 52 32 100 100 28 . . . . 100 . . . . 48 67 12 Level 1 33 | . . . . . 68 43 67 . . 59 . . . . . . . . . 33 32 17 Level 2 7 | . . . . . . 3 . . . 11 . . . . . . . . . 18 . 44 Level 3 2 | . . . . . . . . . . . . . . . . . . . . . . 25 Level 4 . | . . . . . . . . . . . . . . . . . . . . . . . Level 5 . | . . . . . . . . . . . . . . . . . . . . . . . High Security . | . . . . . . . . . . . . . . . . . . . . . . . Max Security . | . . . . . . . . . . . . . . . . . . . . . . . Squads Dispatched 43 | . 1 . . . 5 8 2 2 . 5 . . . . 2 . . . . 5 5 8 Investigation 6 | . . . . . 2 3 . . . 1 . . . . . . . . . . . . Extermination 10 | . . . . . . 3 . . . 1 . . . . . . . . . 2 3 1 Reinforcement 23 | . 1 . . . 3 2 2 2 . 3 . . . . 2 . . . . 2 2 4 Assault 2 | . . . . . . . . . . . . . . . . . . . . 1 . 1 Garrison . | . . . . . . . . . . . . . . . . . . . . . . . Intercept 2 | . . . . . . . . . . . . . . . . . . . . . . 2 Searches Triggered . | . . . . . . . . . . . . . . . . . . . . . . . Construction Impeded 1 | . . . . . . 1 . . . . . . . . . . . . . . . . Haulers Reinforced 5 | . . . . . . . 1 1 . . . . . . . . . . . 1 1 1 Active Scanning Responses . | . . . . . . . . . . . . . . . . . . . . . . . Cargo Convoy Interrupts . | . . . . . . . . . . . . . . . . . . . . . . . Stealth | -11 -10 -10 -10 -9 -8 -7 -6 -5 -5 -5 -5 -5 -5 -4 -4 -4 -4 -4 -3 -3 -3 -3 --------- Run | Scr Mat Min Exi Min Mat Fac Fac Fac Was Fac Upp Upp Zhi Pro Fac Upp Upp War Pro Res Qua Sec Distress Signals 13 | . 2 . . . . . . 1 . 1 . . . 2 . . . . 1 3 . 3 Communications Jammed 79 | . . . . . . . . . . . . . . . . . . . . . 42 37 Distress Signals 79 | . . . . . . . . . . . . . . . . . . . . . 42 37 Times Spotted 375 | . 5 9 . 7 25 31 26 4 . 22 4 16 . 12 6 4 1 68 9 46 19 61 Peak Tracking Total 15 | . 5 3 . 4 4 5 6 5 . 3 4 5 . 9 2 2 2 15 8 7 4 15 Tactical Retreats 15 | . . . . . . . . . . . . 4 . 3 . 1 1 . 2 . 1 3 Traps | -11 -10 -10 -10 -9 -8 -7 -6 -5 -5 -5 -5 -5 -5 -4 -4 -4 -4 -4 -3 -3 -3 -3 ------- Run | Scr Mat Min Exi Min Mat Fac Fac Fac Was Fac Upp Upp Zhi Pro Fac Upp Upp War Pro Res Qua Sec Traps Triggered 18 | . . . . . 1 . 7 1 . . . . . . 7 . . . 1 1 . . Indirectly . | . . . . . . . . . . . . . . . . . . . . . . . Trap Hack Attempts . | . . . . . . . . . . . . . . . . . . . . . . . Triggered . | . . . . . . . . . . . . . . . . . . . . . . . Disarmed . | . . . . . . . . . . . . . . . . . . . . . . . Reprogrammed . | . . . . . . . . . . . . . . . . . . . . . . . Reused . | . . . . . . . . . . . . . . . . . . . . . . . Traps Extracted . | . . . . . . . . . . . . . . . . . . . . . . . Installed . | . . . . . . . . . . . . . . . . . . . . . . . Triggered 13 | . . . . . . . . . . . . 1 . . . 2 . 10 . . . . Machines | -11 -10 -10 -10 -9 -8 -7 -6 -5 -5 -5 -5 -5 -5 -4 -4 -4 -4 -4 -3 -3 -3 -3 ---------- Run | Scr Mat Min Exi Min Mat Fac Fac Fac Was Fac Upp Upp Zhi Pro Fac Upp Upp War Pro Res Qua Sec Machines Disabled 27 | . . 1 . 1 . 1 1 1 . 3 . . . . 1 . . 1 . 1 2 14 Max in Single Turn 1 | . . 1 . 1 . 1 1 1 . 1 . . . . 1 . . . . 1 1 1 Garrison Access 2 | . . . . . . . 1 . . . . . . . . . . . . . 1 . Machines Sabotaged . | . . . . . . . . . . . . . . . . . . . . . . . Garrisons Compromised . | . . . . . . . . . . . . . . . . . . . . . . . Overloaded Fab Kills . | . . . . . . . . . . . . . . . . . . . . . . . Hacking | -11 -10 -10 -10 -9 -8 -7 -6 -5 -5 -5 -5 -5 -5 -4 -4 -4 -4 -4 -3 -3 -3 -3 --------- Run | Scr Mat Min Exi Min Mat Fac Fac Fac Was Fac Upp Upp Zhi Pro Fac Upp Upp War Pro Res Qua Sec Machines Accessed 61 | . 1 . 1 . 6 6 9 1 . 7 . . 5 4 1 1 . 3 . 4 11 1 Terminals 30 | . 1 . . . 4 2 4 1 . 4 . . . 2 . . . . . 3 8 1 Fabricators 5 | . . . . . . 1 3 . . . . . . 1 . . . . . . . . Repair Stations 4 | . . . . . 1 . . . . 1 . . . . . . . . . 1 1 . Recycling Units 3 | . . . . . . 1 . . . 1 . . . 1 . . . . . . . . Scanalyzers 4 | . . . . . 1 . 1 . . . . . . . 1 . . . . . 1 . Garrison Access 5 | . . . . . . 2 1 . . 1 . . . . . . . . . . 1 . Total Hacks 151 | . 3 . 1 . 18 17 23 1 . 18 . . 18 8 2 1 . 10 . 8 21 2 Successful 85 | . 2 . 1 . 8 6 15 . . 5 . . 18 4 2 1 . 10 . 3 9 1 Failed 65 | . 1 . . . 9 11 8 1 . 13 . . . 4 . . . . . 5 12 1 Catastrophic 14 | . . . . . . 1 3 1 . 1 . . . 1 . . . . . 1 6 . Database Lockouts 1 | . . . . . 1 . . . . . . . . . . . . . . . . . Manual 32 | . 3 . . . 6 3 5 . . 3 . . . . . . . . . 4 8 . Terminals 66 | . 3 . . . 14 4 6 1 . 10 . . . 2 . . . . . 7 17 2 Fabricators 13 | . . . . . . 2 7 . . . . . . 4 . . . . . . . . Repair Stations 7 | . . . . . 1 . . . . 3 . . . . . . . . . 1 2 . Recycling Units 9 | . . . . . . 4 . . . 3 . . . 2 . . . . . . . . Scanalyzers 15 | . . . . . 3 . 9 . . . . . . . 2 . . . . . 1 . Garrison Access 11 | . . . . . . 7 1 . . 2 . . . . . . . . . . 1 . Terminal Hacks 52 | . 1 . 1 . 5 2 1 . . 3 . . 18 2 . 1 . 10 . 3 4 1 Record 9 | . . . 1 . . . . . . . . . 6 1 . . . . . . 1 . Part Schematic 5 | . . . . . 1 . . . . . . . 4 . . . . . . . . . Robot Analysis 5 | . 1 . . . . . . . . . . . 4 . . . . . . . . . Prototype ID Bank 14 | . . . . . . . . . . . . . 4 . . . . 9 . . 1 . Open Door 4 | . . . . . . . . . . . . . . 1 . 1 . 1 . . . 1 Open DSF 1 | . . . . . . . . . . 1 . . . . . . . . . . . . Branch Access Points 2 | . . . . . . 1 . . . 1 . . . . . . . . . . . . Terminal Index 3 | . . . . . . . . . . 1 . . . . . . . . . 1 1 . Unreport Threat 1 | . . . . . . . . . . . . . . . . . . . . . 1 . Locate Traps 2 | . . . . . 1 1 . . . . . . . . . . . . . . . . Dispatch Records 1 | . . . . . 1 . . . . . . . . . . . . . . . . . Maintenance Status 1 | . . . . . . . . . . . . . . . . . . . . 1 . . Hauler Manifests 1 | . . . . . 1 . . . . . . . . . . . . . . . . . Registered Components 1 | . . . . . 1 . . . . . . . . . . . . . . . . . Zone Layout 2 | . . . . . . . 1 . . . . . . . . . . . . 1 . . Fabricator Hacks 4 | . . . . . . . 2 . . . . . . 2 . . . . . . . . Network Status 1 | . . . . . . . 1 . . . . . . . . . . . . . . . Load Schematic 1 | . . . . . . . . . . . . . . 1 . . . . . . . . Build 2 | . . . . . . . 1 . . . . . . 1 . . . . . . . . Repair Station Hacks 2 | . . . . . . . . . . 1 . . . . . . . . . . 1 . Scan Component 2 | . . . . . . . . . . 1 . . . . . . . . . . 1 . Recycling Unit Hacks 3 | . . . . . . 2 . . . 1 . . . . . . . . . . . . Process 2 | . . . . . . 1 . . . 1 . . . . . . . . . . . . Retrieve Matter 1 | . . . . . . 1 . . . . . . . . . . . . . . . . Scanalyzer 12 | . . . . . 2 . 8 . . . . . . . 2 . . . . . . . Insert Component 5 | . . . . . 1 . 3 . . . . . . . 1 . . . . . . . Analyze 7 | . . . . . 1 . 5 . . . . . . . 1 . . . . . . . Garrison Access Hacks 2 | . . . . . . . 1 . . . . . . . . . . . . . 1 . Seal Access 2 | . . . . . . . 1 . . . . . . . . . . . . . 1 . Unauthorized Hacks 10 | . 1 . . . 1 2 3 . . . . . . . . . . . . . 3 . Terminals 5 | . 1 . . . 1 . . . . . . . . . . . . . . . 3 . Assimilate 1 | . . . . . 1 . . . . . . . . . . . . . . . . . Botnet 3 | . . . . . . . . . . . . . . . . . . . . . 3 . Operators 1 | . 1 . . . . . . . . . . . . . . . . . . . . . Fabricators 3 | . . . . . . . 3 . . . . . . . . . . . . . . . Report 1 | . . . . . . . 1 . . . . . . . . . . . . . . . Prioritize 1 | . . . . . . . 1 . . . . . . . . . . . . . . . Haulers 1 | . . . . . . . 1 . . . . . . . . . . . . . . . Repair Stations . | . . . . . . . . . . . . . . . . . . . . . . . Recycling Units 2 | . . . . . . 2 . . . . . . . . . . . . . . . . Reject 1 | . . . . . . 1 . . . . . . . . . . . . . . . . Recyclers 1 | . . . . . . 1 . . . . . . . . . . . . . . . . Scanalyzers . | . . . . . . . . . . . . . . . . . . . . . . . Garrison Access . | . . . . . . . . . . . . . . . . . . . . . . . Data Cores Recovered 1 | . . . . . . 1 . . . . . . . . . . . . . . . . Used 1 | . . . . . . 1 . . . . . . . . . . . . . . . . Hacking Detections 43 | . 1 . . . 6 6 7 1 . 5 . . . 3 1 . . . . 4 9 . Full Trace Events 6 | . . . . . 1 3 . . . 1 . . . 1 . . . . . . . . Feedback Events 2 | . . . . . . 2 . . . . . . . . . . . . . . . . Corruption 2 | . . . . . . 2 . . . . . . . . . . . . . . . . Feedback Blocked . | . . . . . . . . . . . . . . . . . . . . . . . Robot Schematics Acquired . | . . . . . . . . . . . . . . . . . . . . . . . Robots Built . | . . . . . . . . . . . . . . . . . . . . . . . Authchips . | . . . . . . . . . . . . . . . . . . . . . . . Time . | . . . . . . . . . . . . . . . . . . . . . . . Total Robot Build Rating . | . . . . . . . . . . . . . . . . . . . . . . . Part Schematics Acquired 7 | . . . . . 1 . 2 . . . . . 4 . . . . . . . . . Parts Built 3 | . . . . . . . 2 . . . . . . 1 . . . . . . . . Authchips . | . . . . . . . . . . . . . . . . . . . . . . . Time 219 | . . . . . . . 117 . . . . . . 102 . . . . . . . . Total Part Build Rating 22 | . . . . . . . 14 . . . . . . 8 . . . . . . . . Parts Repaired . | . . . . . . . . . . . . . . . . . . . . . . . Time . | . . . . . . . . . . . . . . . . . . . . . . . Parts Recycled . | . . . . . . . . . . . . . . . . . . . . . . . Recycled Matter 411 | . . . . . . . . . . 411 . . . . . . . . . . . . Retrieved Matter . | . . . . . . . . . . . . . . . . . . . . . . . Retrieved Components . | . . . . . . . . . . . . . . . . . . . . . . . Parts Scanalyzed 3 | . . . . . 1 . 1 . . . . . . . 1 . . . . . . . Part Schematics Acquired 2 | . . . . . . . 2 . . . . . . . . . . . . . . . Parts Damaged . | . . . . . . . . . . . . . . . . . . . . . . . Bothacking | -11 -10 -10 -10 -9 -8 -7 -6 -5 -5 -5 -5 -5 -5 -4 -4 -4 -4 -4 -3 -3 -3 -3 ------------ Run | Scr Mat Min Exi Min Mat Fac Fac Fac Was Fac Upp Upp Zhi Pro Fac Upp Upp War Pro Res Qua Sec Used RIF Installer . | . . . . . . . . . . . . . . . . . . . . . . . Robots Hacked . | . . . . . . . . . . . . . . . . . . . . . . . Non-combat . | . . . . . . . . . . . . . . . . . . . . . . . Combat . | . . . . . . . . . . . . . . . . . . . . . . . Robot Hacks Applied . | . . . . . . . . . . . . . . . . . . . . . . . Relay Couplers Released 3 | . . . . . . . . . . . . . . . . . . . . . 3 . Programmers 3 | . . . . . . . . . . . . . . . . . . . . . 3 . Fabnet Peak Effective % . | . . . . . . . . . . . . . . . . . . . . . . . Robots Rewired 11 | . . . . . . . . . . . . . . 6 . . . 5 . . . . Allies Hacked . | . . . . . . . . . . . . . . . . . . . . . . . Hacks Repelled . | . . . . . . . . . . . . . . . . . . . . . . . Allies | -11 -10 -10 -10 -9 -8 -7 -6 -5 -5 -5 -5 -5 -5 -4 -4 -4 -4 -4 -3 -3 -3 -3 -------- Run | Scr Mat Min Exi Min Mat Fac Fac Fac Was Fac Upp Upp Zhi Pro Fac Upp Upp War Pro Res Qua Sec Total Allies 35 | . . . . . 1 . 3 . 20 . . . . 6 . . . 5 . . . . Largest Group 20 | . . . . . 1 1 3 . 20 20 . . . 4 4 . . 5 1 . . . Highest-Rated Group 756 | . . . . . 10 10 93 . 756 756 . . . 210 198 . . 298 65 . . . Highest-Rated Ally 65 | . . . . . 10 10 31 . 50 50 . . . 56 51 . . 65 65 . . . Total Orders 2 | . . . . . . . . . . . . . . . . . . 2 . . . . STAY 1 | . . . . . . . . . . . . . . . . . . 1 . . . . FOLLOW 1 | . . . . . . . . . . . . . . . . . . 1 . . . . Ally Attacks 175 | . . . . . . . 23 . . 88 . . . 23 11 . . 30 . . . . Total Damage 4047 | . . . . . . . 294 . . 1640 . . . 735 242 . . 1136 . . . . Kills 25 | . . . . . . . 1 . . 10 . . . 6 1 . . 7 . . . . Allies Corrupted 1 | . . . . . . . . . . 1 . . . . . . . . . . . . Allies Melted . | . . . . . . . . . . . . . . . . . . . . . . . Intel | -11 -10 -10 -10 -9 -8 -7 -6 -5 -5 -5 -5 -5 -5 -4 -4 -4 -4 -4 -3 -3 -3 -3 ------- Run | Scr Mat Min Exi Min Mat Fac Fac Fac Was Fac Upp Upp Zhi Pro Fac Upp Upp War Pro Res Qua Sec Robot Analysis Total 5 | . 1 . . . . . . . . . . . 4 . . . . . . . . . Derelict Logs Recovered 7 | . . 1 . 1 . . . . . . . 1 . 1 . 1 2 . . . . . Drone Launches . | . . . . . . . . . . . . . . . . . . . . . . . Drone Recoveries . | . . . . . . . . . . . . . . . . . . . . . . . Exploration | -11 -10 -10 -10 -9 -8 -7 -6 -5 -5 -5 -5 -5 -5 -4 -4 -4 -4 -4 -3 -3 -3 -3 ------------- Run | Scr Mat Min Exi Min Mat Fac Fac Fac Was Fac Upp Upp Zhi Pro Fac Upp Upp War Pro Res Qua Sec Turns Passed 14637 | 112 313 841 546 253 876 1373 1002 253 481 997 972 881 255 574 406 319 170 879 211 1090 1046 787 Spaces Moved 11488 | 72 233 630 456 162 486 855 612 180 392 682 552 441 206 724 319 422 409 1219 413 812 693 518 Core 11 | 7 . . . . . . . . . . . . . . . . . . . . . 4 Treads 1341 | . . . . . . . . . . 90 552 441 108 . . . . . . . 2 148 Legs 5859 | 65 233 630 456 162 486 855 612 180 392 592 . . . . 5 . . . . 393 691 107 Wheels 54 | . . . . . . . . . . . . . . . . . . . . . . 54 Hover 4018 | . . . . . . . . . . . . . 98 724 314 422 409 1219 413 419 . . Flight . | . . . . . . . . . . . . . . . . . . . . . . . Fastest Speed 28 | 50 120 120 120 120 120 120 120 120 116 117 165 165 43 28 40 33 33 33 31 42 110 100 Average Speed 98 | 113 120 120 120 120 121 123 120 120 116 123 165 165 109 54 92 52 33 36 37 77 115 130 Slowest Speed 260 | 120 120 190 120 120 190 125 124 120 117 250 165 170 170 100 260 87 33 87 94 120 225 205 Overloaded Moves 99 | . . . . . . . . . . . . . . 49 . . . . 50 . . . Propulsion Burnouts . | . . . . . . . . . . . . . . . . . . . . . . . Robots Hopped 1 | . . . . . . . . . . . . . . . 1 . . . . . . . Cave-ins Triggered . | . . . . . . . . . . . . . . . . . . . . . . . Teleports 1 | . . . . . . . . . . . . . . . . . . . . . . 1 Microwarps 18 | . . . . . . . . . . . . . . . . . . . . . . 18 Exploration Rate (%) 47 | 4 36 99 81 25 44 25 23 5 97 25 64 53 62 66 10 57 48 91 55 21 71 30 Regions Visited 22 Branch Regions 13 Pre-discovered Areas 7 | . . 1 1 . . . . . . . . 1 3 . . . 1 . . . . . Known Exits Taken 13 | . . . . . . . 1 . . 1 1 1 1 1 1 1 1 1 1 1 1 . Unknown Exits Taken 7 | 1 1 1 1 1 1 1 . . . . . . . . . . . . . . . . Scrap Searched 12 | . . 1 . 1 . . . . . . 3 1 . 3 . . . . 3 . . . Spaces Dug 13 | . . . . . . . . . . 1 . . . . . . . . 6 6 . . Terrain Destroyed 201 | . . . . . . 10 24 . . 6 1 25 . . 4 4 . 13 8 11 2 93 Melee 2 | . . . . . . . . . . . . . . . . . . . 2 . . . Projectile 93 | . . . . . . . 2 . . 6 1 10 . . 4 4 . 13 6 10 2 35 AOE 105 | . . . . . . 10 22 . . . . 15 . . . . . . . . . 58 Terrain Rammed . | . . . . . . . . . . . . . . . . . . . . . . . Walls Destroyed . | . . . . . . . . . . . . . . . . . . . . . . . Machines Disabled . | . . . . . . . . . . . . . . . . . . . . . . . Actions | -11 -10 -10 -10 -9 -8 -7 -6 -5 -5 -5 -5 -5 -5 -4 -4 -4 -4 -4 -3 -3 -3 -3 --------- Run | Scr Mat Min Exi Min Mat Fac Fac Fac Was Fac Upp Upp Zhi Pro Fac Upp Upp War Pro Res Qua Sec Total 13588 | 94 257 672 455 205 632 1036 776 199 425 764 603 529 233 906 394 499 443 1580 447 1049 859 531 Wait 810 | . 2 4 . 13 27 68 35 2 8 8 41 43 4 101 14 63 35 180 11 44 71 36 Move 11278 | 71 232 629 455 161 485 854 611 180 391 681 551 440 205 723 316 421 408 1218 412 811 692 331 Hop 1 | . . . . . . . . . . . . . . . 1 . . . . . . . Pick Up 118 | 10 4 4 . 4 3 5 9 3 7 12 2 1 6 5 3 1 . 11 2 14 3 9 Fast Attach 179 | 5 2 3 . . 7 9 20 2 3 5 1 1 6 4 29 2 . 21 3 19 18 19 Attach 70 | 2 . 2 . . 2 3 10 1 . 8 . 4 4 2 2 . . 2 1 12 1 14 Detach 24 | . . 1 . . 1 . 2 1 . . . 2 2 . 2 . . 3 2 2 2 4 Swap 113 | . 2 . . 6 16 9 13 1 3 7 1 4 2 3 5 3 . 5 . 9 17 7 Drop 228 | . 8 4 . 9 15 17 20 . 13 8 2 2 4 6 11 2 . 34 4 24 21 24 Fire 618 | 6 7 24 . 12 75 71 55 8 . 34 5 32 . . 11 7 . 36 9 111 34 81 Melee 3 | . . . . . . . . . . . . . . 1 . . . . 2 . . . Ram 3 | . . . . . . . . . . . . . . . . . . . . . . 3 Kick 8 | . . 1 . . 1 . 1 1 . 1 . . . . . . . . . 3 . . Crush 3 | . . . . . . . . . . . . . . . . . . . . . . 3 Escape Stasis 1 | . . . . . . . . . . . . . . . . . . . 1 . . . Rewire 131 | . . . . . . . . . . . . . . 61 . . . 70 . . . . Trap . | . . . . . . . . . . . . . . . . . . . . . . . Miscellaneous . | . . . . . . . . . . . . . . . . . . . . . . . Route ------- -11/Scrapyard -10/Materials -10/Mines (discovered 3 exits: [*Mat x2] / *Exi) -10/Exiles (discovered 2 exits: [*Min x2]) -9/Mines -8/Materials -7/Factory (discovered 4 exits: *Fac / Sto / Low x2) -6/Factory -5/Factory -5/Waste -5/Factory (discovered 2 exits: *Upp x2) -5/Upper Caves -5/Upper Caves -5/Zhirov -4/Proximity Caves -4/Factory (discovered 2 exits: *Res / *Upp) -4/Upper Caves -4/Upper Caves -4/Warlord -3/Proximity Caves -3/Research (discovered 2 exits: [*Arm] / *Qua) -3/Quarantine -3/Section 7 History --------- Turn | Location | Event 8 | -11/Scrapyard | Discovered new exit (range 15) 113 | -11/Scrapyard | Entered Materials 237 | -10/Materials | Discovered new exit (range 12) 310 | -10/Materials | Build established: Mutant 426 | -10/Materials | Entered Mines 447 | -10/Mines | Discovered new exit (range 9) 471 | -10/Mines | Deemed a non-threat by the Exiles lab entrance 472 | -10/Mines | Discovered new exit (range 5) 499 | -10/Mines | Received a Rocket Launcher from a helpful Derelict 568 | -10/Mines | Destroyed YI-UF0 609 | -10/Mines | Lost 3 parts (1p1n1w) 734 | -10/Mines | A weapon hastily lodged in a ceiling crevice suddenly fell to the ground 979 | -10/Mines | Discovered new exit (range 13) 1064 | -10/Mines | Found a damaged Exp. Sensor Array with a note attached 1067 | -10/Mines | Found Prototype Device 1067 | -10/Mines | Identified Exp. Sensor Array 1267 | -10/Mines | Entered Exiles 1283 | -10/Exiles | Discovered new exit (range 15) 1314 | -10/Exiles | Met 8R-AWN 1331 | -10/Exiles | Met EX-HEX 1378 | -10/Exiles | Met EX-DEC 1384 | -10/Exiles | Learned location of Zion (-7) 1447 | -10/Exiles | Visited The Gauntlet 1800 | -10/Exiles | Discovered new exit (range 10) 1813 | -10/Exiles | Entered Mines 1815 | -9/Mines | Core integrity fell below 50% 1883 | -9/Mines | Found a hidden stash of uninstalled traps 1961 | -9/Mines | Discovered new exit (range 8) 2066 | -9/Mines | Entered Materials 2066 | -8/Materials | Evolved 4 slots: Power x1, Propulsion x2, Weapon x1 2561 | -8/Materials | Build established: Scavenger-Gunner 2766 | -8/Materials | Discovered new exit (range 15) 2864 | -8/Materials | Central database locked down 2942 | -8/Materials | Entered Factory 2942 | -7/Factory | Accompanied by 1 ally 2942 | -7/Factory | Evolved 2 slots: Utility x2 2943 | -7/Factory | Identified exit to Storage 3292 | -7/Factory | Build established: Gunner 4025 | -7/Factory | Identified exit to Lower Caves 4226 | -7/Factory | Discovered new exit (range 9) 4315 | -7/Factory | Entered another Factory area 4315 | -6/Factory | Evolved 2 slots: Propulsion x1, Utility x1 4401 | -6/Factory | Allied Derelicts emerged from ambush trap array 4583 | -6/Factory | Fabricated Lgt. Antimatter Reactor (x2) 4893 | -6/Factory | Lost 6 parts (1p1n1u3w) 5079 | -6/Factory | Lost 5 parts (1p1n1u2w) 5231 | -6/Factory | System corruption reached 10% 5240 | -6/Factory | Discovered new exit (range 15) 5257 | -6/Factory | Identified exit to Factory 5317 | -6/Factory | Entered another Factory area 5317 | -5/Factory | Evolved 2 slots: Propulsion x2 5418 | -5/Factory | Build established: Scavenger-Skirmisher 5570 | -5/Factory | Sucked down chute 5570 | -5/Factory | Entered Waste 5571 | -5/Waste | Joined by Warlord forces that had cleared the area 5968 | -5/Waste | Discovered new exit (range 12) 6043 | -5/Waste | Identified exit to Factory 6051 | -5/Waste | Entered Factory 6051 | -5/Factory | Accompanied by 20 allies 6147 | -5/Factory | Identified exit to DSF 6772 | -5/Factory | Identified exit to Upper Caves 6879 | -5/Factory | Lost 5 parts (2n1u2w) 6920 | -5/Factory | Lost 3 parts (1p1u1w) 7048 | -5/Factory | Entered Upper Caves 7441 | -5/Upper Caves | Encountered a Warlord checkpoint 7546 | -5/Upper Caves | Discovered new exit (range 12) 7574 | -5/Upper Caves | Identified exit to Upper Caves 8020 | -5/Upper Caves | Entered another Upper Caves area 8155 | -5/Upper Caves | Build established: Scavenger-Mutant 8760 | -5/Upper Caves | Learned location of Warlord (-4) 8840 | -5/Upper Caves | Spotted B-75 Beast 8891 | -5/Upper Caves | Discovered new exit (range 7) 8899 | -5/Upper Caves | Identified exit to Zhirov 8901 | -5/Upper Caves | Entered Zhirov 8901 | -5/Zhirov | Discovered new exit (range 3) 8915 | -5/Zhirov | Lost 12 parts (5n3u4w) 8932 | -5/Zhirov | Met Zhirov 8964 | -5/Zhirov | Learned location of Quarantine (-3) 8964 | -5/Zhirov | Learned location of Testing (-2) 8964 | -5/Zhirov | Learned location of Command (-1) 8993 | -5/Zhirov | Zhirov requested help retrieving the SGEMP Prototype 9037 | -5/Zhirov | Found Alien Artifact 9039 | -5/Zhirov | Identified Integrated Dissipator 9039 | -5/Zhirov | Installed Integrated Dissipator, increased core heat dissipation (+20) 9060 | -5/Zhirov | Found Alien Artifact 9139 | -5/Zhirov | Identified exit to Proximity Caves 9156 | -5/Zhirov | Entered Proximity Caves 9158 | -4/Proximity Caves | Attracted the attention of an 0b10 checkpoint 9160 | -4/Proximity Caves | Build established: Mutant 9365 | -4/Proximity Caves | Snuck into a huge 0b10 base via the rear entrance 9369 | -4/Proximity Caves | Derelicts attacked a huge 0b10 base 9377 | -4/Proximity Caves | Discovered new exit (range 8) 9645 | -4/Proximity Caves | Fabricated Exp. Sensor Array (x1) 9723 | -4/Proximity Caves | Identified exit to Factory 9730 | -4/Proximity Caves | Entered Factory 9730 | -4/Factory | Accompanied by 4 allies 9730 | -4/Factory | Evolved 2 slots: Power x1, Weapon x1 9963 | -4/Factory | Discovered new exit (range 11) 9978 | -4/Factory | Identified exit to Research 10129 | -4/Factory | Discovered new exit (range 9) 10135 | -4/Factory | Identified exit to Upper Caves 10136 | -4/Factory | Entered Upper Caves 10277 | -4/Upper Caves | Build established: Scavenger-Skirmisher 10376 | -4/Upper Caves | Learned location of 1 exit from Research 10451 | -4/Upper Caves | Discovered new exit (range 12) 10454 | -4/Upper Caves | Identified exit to Upper Caves 10455 | -4/Upper Caves | Entered another Upper Caves area 10616 | -4/Upper Caves | Learned Research trap positions 10623 | -4/Upper Caves | Discovered new exit (range 7) 10625 | -4/Upper Caves | Identified exit to Warlord 10625 | -4/Upper Caves | Entered Warlord 10637 | -4/Warlord | System corruption cleaned by Quarantine Array 10643 | -4/Warlord | Build established: Scavenger-Sprinter 10876 | -4/Warlord | Found Prototype Device 10876 | -4/Warlord | Identified Minesniffer Drone Bay 10905 | -4/Warlord | Warlord's base attacked by MAIN.C 10921 | -4/Warlord | Met Warlord 10944 | -4/Warlord | Found Prototype Energy Cannon 10944 | -4/Warlord | Identified Vortex Driver 10947 | -4/Warlord | Found Prototype Launcher 10947 | -4/Warlord | Identified Vortex Catalyst Activator 11110 | -4/Warlord | Warlord forces counterattacked 11227 | -4/Warlord | Spotted Executioner 11259 | -4/Warlord | Found Prototype Processor 11259 | -4/Warlord | Identified Exp. Core Analyzer 11305 | -4/Warlord | Spotted Striker 11305 | -4/Warlord | Spotted Striker 11405 | -4/Warlord | Spotted Striker 11405 | -4/Warlord | Spotted Executioner 11407 | -4/Warlord | P-80 Master assimilated allied O7-HP6(g) 11428 | -4/Warlord | Destroyed Executioner 11455 | -4/Warlord | Lost 3 parts (1n1u1w) 11465 | -4/Warlord | Discovered new exit (range 14) 11504 | -4/Warlord | Identified exit to Proximity Caves 11504 | -4/Warlord | Entered Proximity Caves 11504 | -3/Proximity Caves | Accompanied by 1 ally 11640 | -3/Proximity Caves | Attracted the attention of an 0b10 checkpoint 11711 | -3/Proximity Caves | Discovered exit to Research (range 14) 11715 | -3/Proximity Caves | Entered Research 11715 | -3/Research | Evolved 2 slots: Propulsion x1, Utility x1 11716 | -3/Research | Identified exit to Quarantine 11717 | -3/Research | Loaded intel: 97 trap records 12344 | -3/Research | Build established: Scavenger-Gunner 12386 | -3/Research | Lost 3 parts (2p1w) 12491 | -3/Research | Lost 3 parts (3w) 12715 | -3/Research | First assault squad dispatched 12781 | -3/Research | Discovered new exit (range 13) 12805 | -3/Research | Entered Quarantine 13024 | -3/Quarantine | Build established: Scavenger-Skirmisher 13410 | -3/Quarantine | Found Alien Energy Cannon 13410 | -3/Quarantine | Identified Core Cannon 13511 | -3/Quarantine | System corruption reached 10% 13593 | -3/Quarantine | Found Unknown Device 13593 | -3/Quarantine | Identified Quantum Capacitor 13705 | -3/Quarantine | Found Alien Artifact 13770 | -3/Quarantine | Spotted Fortress 13847 | -3/Quarantine | Discovered new exit (range 5) 13850 | -3/Quarantine | Identified exit to Section 7 13851 | -3/Quarantine | Entered Section 7 13863 | -3/Section 7 | Found Alien Artifact 13863 | -3/Section 7 | Identified Core Reset Matrix 13863 | -3/Section 7 | Identified Transdimensional Reconstructor 13863 | -3/Section 7 | Identified Subatomic Replicator 13863 | -3/Section 7 | Used Core Reset Matrix 13867 | -3/Section 7 | Sensed 21 artifacts in vicinity 13926 | -3/Section 7 | Found Spacefold Activator 14021 | -3/Section 7 | Destroyed 10 combat bots 14107 | -3/Section 7 | Found Microwarp Drive 14243 | -3/Section 7 | Spotted S7 Guard 14292 | -3/Section 7 | Destroyed S7 Guard 14315 | -3/Section 7 | Found Prototype Protection 14315 | -3/Section 7 | Identified Hvy. Regenerative Plating 14422 | -3/Section 7 | Destroyed 7 combat bots 14459 | -3/Section 7 | Spotted B-86 Titan 14524 | -3/Section 7 | Scanned by Researcher 14550 | -3/Section 7 | Lost 7 parts (1p1n3u2w) 14561 | -3/Section 7 | Found Integrity Redistributor 14567 | -3/Section 7 | Core integrity fell below 50% 14570 | -3/Section 7 | Spotted B-99 Colossus 14577 | -3/Section 7 | Intercept squad dispatched 14589 | -3/Section 7 | Spotted Tracker 14601 | -3/Section 7 | First assault squad dispatched 14607 | -3/Section 7 | Found LRC Boosters 14607 | -3/Section 7 | Installed LRC Boosters, increased mass support (+10) 14614 | -3/Section 7 | Found LRC Matter Compressor 14614 | -3/Section 7 | Installed LRC Matter Compressor, increased matter storage capacity (+125) 14629 | -3/Section 7 | Spotted Combat Programmer 14630 | -3/Section 7 | Core integrity fell below 20% 14633 | -3/Section 7 | Used Integrity Redistributor, redistributed integrity to core (+64) 14634 | -3/Section 7 | Warped through subspace 14638 | -3/Section 7 | Destroyed self with Vortex Catalyst Activator Last Messages --------------- 14623_ Slammed into P-80 Master. 14626_ Quantum Rifle destroyed. 14626_ Slammed into P-80 Master. 14628_ Microwarped (distance 9). 14629_ Microwarped (distance 4). 14629_ EMDS Slug penetrates Reinforced Barrier. 14629_ Machine disabled. 14630_ Microwarped (distance 9). 14631_ Microwarped (distance 21). 14631_ Adv. Heavy Treads destroyed. 14632_ Microwarped (distance 12). 14632_ Helical Railgun destroyed. 14632_ W-44 Eye sends out distress signal. 14633_ Integrity redistributed to core (+64). 14634_ Warped through subspace. 14635_ Microwarped (distance 8). 14636_ Microwarped (distance 3). 14637_ Penetrated by EMDS Slug. 14637_ Microwarp Drive destroyed. 14637_ Machine disabled. Map ----- +----------------------------------------------------+ | "#???????????????? "???????? | | " ""#??????????????????"""" ##???????? | | ""#??????????????????"""" #????????? | | "" ""#????????????????????#### ###//#????????? | | ^ ""#???????????????????????# ??# #????????? | | T"#???????????????????????###??# #????????? | | """ ""#????????????????????????????# #????????? | | """ ""?????????????????????????????# #????????? | | " " ""?????????????????????????????# #????????? | | " ""?????????????????????????????# #????????? | | "?????????????????????????????# #???????"" | | """ ##??????????????????############ #### " | | """ #???????????????????# | | """ #???????????????????# | | " #???????????????????# ###############" | | #???????????????##### #???????????????? | | """ #?????????????###!!!# ####??????????????? | | """ #?????????????? """"" """"????????????????? | | """ #?????????????? """#???????????????? | | " ???????????????" """#???????????????? | | ???????????????""""" "" #???????????????? | | """ ? ?????????????#"""" #???????????????? | | """ ??????????????#""" " "#???????????????? | | """ ?????????????#""""" #?#######??####?? | | "????#????????????#"@ ps #?#"""""""""""""# | | ??????????????????#"""" @ #?#"" """" # | | ??????????????????#"""" #?#"" """" # | | ?????????????????#####;;; ;;###?#"" """" # | | ??????????????????????# ?# ##????#"" """" | | ??????????????????????##?# #?????# | | ??????????????????????????# #?????# # | | ??????????????????????????# ####### """" ""# | | ??????????????????????????# """" ""# | | ??????????????????????????# p """" ""? | | ??????????????????????????########## """" "?? | | ???????????????????????????????????#"""T """""""?? | | ???????????????????????????????????##### ######??? | | ???????????????????????????????????????# #???????? | | ??????????????????????????????????????## #####???? | | ??????????????????????????????????????# "" #???? | | ??????????????????????????????????????#" #???? | | ???????????????????????????????????????#######???? | | ?????????????????????????????????????????????????? | | ?????????????????????????????????????????????????? | | ?????????????????????????????????????????????????? | | ?????????????????????????????????????????????????? | | ?????????????????????????????????????????????????? | | ?!???????????????????????????????????????????????? | | ?????????????????????????????????????????????????? | | ?????????????????????????????????????????????????? | +----------------------------------------------------+ Best States ------------- Heat Dissipation 104 Energy Generation 59 Energy Capacity 650 Matter Stores 300 Matter Capacity 425 Sight Range 16 Robot Scan Range 20 Terrain Scan Density 10 ECM Strength 2 Jamming Range 16 Corruption Block 8 Armor Coverage 1200 Resistance: KI 20 Resistance: EM 15 Evasion (%) 59 Target Analysis 8 Core Analysis 8 Recoil Reduction 9 Matter Filtering 50 Offensive Hacking 14 Item Schematics ----------------- None Robot Schematics ------------------ None Fabricated ------------ Lgt. Antimatter Reactor | x2 | -6/Factory | Preloaded Exp. Sensor Array | x1 | -4/Proximity Caves Alien Tech Used ----------------- Integrated Dissipator Core Cannon Core Reset Matrix Microwarp Drive LRC Boosters LRC Matter Compressor Integrity Redistributor Transdimensional Reconstructor Achievements -------------- Gun Specialist Challenges ------------ Unstable Evolution Game ------ Seed DeuteriumWardroneCasing Manual? 0 Play Time 03:25:49 Cumulative 251.3 hours Start 2022.11.09 @ 13:57:38 End 2022.11.10 @ 01:10:16 Sessions 1 Manual Loads 0 Difficulty Rogue Special Mode None Game No. 170 Rogue 147 Adventurer 6 Explorer 17 Win Type - Total 18 Types 11/0/3/1/0/1/1/1/0 Lore% 93 Gallery% 92 Achievement% 72 Wizard Run 0 Options --------- ASCII 0 Keyboard 0 Movement Numpad Keybinds 0 Fullscreen 1 Font 12/Fuzzy Map View 83x54 Tactical HUD 1 Map Filters NONE Filters NONE Steam 1 RUN: 3b3f1490-b54c-484b-8e3c-b0aebdb8d6e5